Cogmind - Beta 14 @@@ ROGUE MODE // 2024.11.24 @ 18:12:33 Player: Fangrelle Result: Destroyed by BE-1SR(R) with Subdweller Shrapnel Launcher Performance ------------- Evolutions (0) 0 Regions Visited (3) 600 Robots Destroyed (24) 120 Value Destroyed (700) 700 Prototype IDs (2) 40 Alien Tech Used (0) 0 Bonus (0) 0 TOTAL SCORE: 1460 Bonus ------- None Cogmind --------- Core Integrity 0/250 Matter 300/300 Energy 250/250 System Corruption 0% Temperature Cool (0) Movement Walking (470) Ox5 Location -10/Subcaves Parts ------- > --- POWER (1) -------- Ion Engine > --- PROPULSION (2) --- Aluminum Leg Aluminum Leg > --- UTILITY (2) ------ Huge Storage Unit Makeshift Light Armor Plating > --- WEAPON (2) ------- Subdweller Beam Cannon Heavy Battle Rifle > --- INVENTORY (25) --- Wheel Heat Sink High-capacity Storage Unit High-capacity Storage Unit Large Matter Pod (150) High-capacity Matter Pod (200) Subdweller Optics Experimental Sensor Array Improved Terrain Scanner Makeshift System Restoration Module Bomb Drone Bay (16/16) Cobbler Unit Medium Laser Medium Laser Subdweller Beam Cannon Battle Cannon Grenade Launcher Subdweller Shrapnel Launcher Multitool Shrapnel Trap Peak State ------------ > --- POWER ------------ Ion Engine > --- PROPULSION ------- Light Treads Light Treads > --- UTILITY ---------- Bomb Drone Bay > --- WEAPON ----------- Battle Cannon Battle Cannon > --- INVENTORY -------- Experimental Sensor Array Scrap Shield [Rating: 22] Favorites ----------- Power Ion Engine Engine Ion Engine Propulsion Light Treads Treads Light Treads Leg Aluminum Leg Wheel Wheel Utility Huge Storage Unit Device Improved Terrain Scanner Storage Huge Storage Unit Protection Makeshift Light Armor Plating Weapon Heavy Battle Rifle Energy Gun Medium Laser Energy Cannon Subdweller Beam Cannon Ballistic Gun Heavy Battle Rifle Ballistic Cannon Battle Cannon Launcher Subdweller Shrapnel Launcher Special Weapon Multitool Build | -11 -10 -10 -10 ------- Run | Yrd Mat Min Sub Slots Evolved . | . . . . Power . | . . . . Propulsion . | . . . . Utility . | . . . . Weapon . | . . . . Parts Attached 39 | . 4 6 29 Power 2 | . . 1 1 Engine 2 | . . 1 1 Core . | . . . . Reactor . | . . . . Propulsion 10 | . 2 3 5 Treads 3 | . . 3 . Leg 2 | . . . 2 Wheel 5 | . 2 . 3 Hover . | . . . . Flight . | . . . . Utility 14 | . 1 2 11 Device 6 | . . 2 4 Storage 3 | . 1 . 2 Processor . | . . . . Hackware . | . . . . Protection 5 | . . . 5 Artifact . | . . . . Weapon 13 | . 1 . 12 Energy Gun . | . . . . Energy Cannon 2 | . 1 . 1 Ballistic Gun 1 | . . . 1 Ballistic Cannon 7 | . . . 7 Launcher 2 | . . . 2 Special Weapon 1 | . . . 1 Impact Weapon . | . . . . Slashing Weapon . | . . . . Piercing Weapon . | . . . . Special Melee Weapon . | . . . . Unidentified Prototypes 2 | . . . 2 Parts Lost 5 | . . 1 4 Power 1 | . . . 1 Propulsion 3 | . . 1 2 Utility 1 | . . . 1 Weapon . | . . . . Highest Loss Streak 1 | . . 1 1 To Critical Strikes . | . . . . Average Slot Usage (%) 95 | . 87 97 95 Engine 13 | . 14 14 13 Treads 12 | . . 24 10 Leg 7 | . . . 9 Wheel 5 | . 28 3 5 Device 3 | . . 11 2 Storage 13 | . 16 14 12 Protection 9 | . . . 11 Energy Cannon 11 | . 12 14 10 Ballistic Gun 11 | . 14 14 10 Ballistic Cannon 4 | . . . 5 Peak Build Rating 22 | . 7 12 22 Average Rating 16 | . 6 10 17 On Entrance 7 | 6 6 6 11 Naked Turns . | . . . . Heaviest Build 101 | 14 55 51 101 Greatest Support 40 | 20 20 40 40 Greatest Overweight (x) 32 | . 2 2 32 Average Overweight (x) 3 | . 1 1 4 Largest Inventory Capacity 25 | . 20 20 25 Average Capacity 22 | . 18 20 23 Most Carried 25 | . 9 20 25 Average Carried 19 | . 6 14 21 Final Capacity 25 | 8 20 20 25 Final Carried 22 | 6 9 20 22 Class Distribution -------------------- 100% | Mutant Dominant Class ---------------- Mutant | -10/Materials Mutant | -10/Mines Mutant | -10/Subcaves Resources | -11 -10 -10 -10 ----------- Run | Yrd Mat Min Sub Matter Collected 1789 | 200 . 290 1299 Remotely . | . . . . Salvage Created 832 | . . 296 536 Parts 48 | . . 19 29 Haulers Intercepted . | . . . . Recyclers Shooed . | . . . . Parts Field Recycled . | . . . . Retrieved Matter . | . . . . Parts Self-Destructed 15 | . . . 15 Prevented . | . . . . Kills | -11 -10 -10 -10 ------- Run | Yrd Mat Min Sub Combat Hostiles Destroyed 21 | . . 8 13 Guns 8 | . . 5 3 Cannons 12 | . . 3 9 Classes Destroyed 9 | . . 5 4 Tunneler 1 | . . 1 . Recycler 1 | . . 1 . Turret 2 | . . . 2 Swarmer 6 | . . 3 3 Grunt 4 | . . 4 . Sentry 1 | . . . 1 Cobbler 1 | . . . 1 Subdweller 9 | . . . 9 Assembled 1 | . . 1 . Best Kill Streak 4 | . . 4 2 Combat Bots Only 2 | . . 2 2 Max Kills in Single Turn 1 | . . 1 1 Gunslinging . | . . . . Exploded . | . . . . Melee . | . . . . Uniques/NPCs Destroyed . | . . . . Combat | -11 -10 -10 -10 -------- Run | Yrd Mat Min Sub Hostile Shots Fired 187 | . . 74 113 Missed 57 | . . 24 33 Damage Taken 1680 | . . 577 1103 Core 264 | . . 60 204 Absorbed by Shields . | . . . . Core Remaining (%) 100 | 100 . . . Volleys Fired 132 | . 2 45 85 Largest 2 | . 2 2 2 Hottest 113 | . 80 80 113 Shots Fired 228 | . 4 90 134 Gun 79 | . 2 45 32 Cannon 144 | . 2 45 97 Launcher 4 | . . . 4 Special 1 | . . . 1 Kinetic 117 | . 2 45 70 Thermal 111 | . 2 45 64 Explosive . | . . . . Electromagnetic . | . . . . Robot Hit Streak 15 | . 1 9 15 Robot Miss Streak 5 | . 2 5 3 Penetration Max . | . . . . Secondary Targets . | . . . . Shots Hit Robots 121 | . 1 50 70 Core Hits 38 | . . 16 22 Critical Kills 1 | . . . 1 Critical Parts Destroyed 1 | . . 1 . Critical Strikes 4 | . . 1 3 Meltdown 1 | . . . 1 Destroy 1 | . . 1 . Blast 2 | . . . 2 Melee Attacks . | . . . . Impact . | . . . . Slashing . | . . . . Piercing . | . . . . Sneak Attacks . | . . . . Combat Hostiles . | . . . . Follow-up Attacks . | . . . . Damage Inflicted 2336 | . 14 795 1527 Guns 758 | . 14 337 407 Cannons 1578 | . . 458 1120 Explosions . | . . . . Melee . | . . . . Ramming . | . . . . Kinetic 1176 | . 14 337 825 Thermal 1160 | . . 458 702 Explosive . | . . . . Electromagnetic . | . . . . Impact . | . . . . Slashing . | . . . . Piercing . | . . . . Highest Corruption . | . . . . Average Corruption . | . . . . Corruption Purged . | . . . . Corruption Blocked . | . . . . Overload Shots . | . . . . Overflow Damage 18 | . . 13 5 Projectiles 18 | . . 13 5 Explosions . | . . . . Melee . | . . . . Knockbacks 4 | . . . 4 Impact . | . . . . Kinetic 4 | . . . 4 Secondary . | . . . . Self-Inflicted Damage . | . . . . Shots . | . . . . Rammed . | . . . . Targets Rammed . | . . . . Kicked . | . . . . Crushed . | . . . . Highest Temperature 294 | . 36 294 84 Average Temperature 64 | . 20 102 19 Received Heat Transfer 447 | . . 210 237 Siege Activations . | . . . . Robots Corrupted . | . . . . Combat Hostiles . | . . . . Parts Fried . | . . . . Impact Corruptions . | . . . . Robots Melted 1 | . . . 1 Combat Hostiles 1 | . . . 1 Parts Melted 6 | . . 2 4 Heat Transferred 1924 | . . 962 962 Parts Sabotaged . | . . . . Parts Stolen . | . . . . Parts Stripped . | . . . . Power Chain Reactions . | . . . . Alert | -11 -10 -10 -10 ------- Run | Yrd Mat Min Sub Peak Influence 138 | . 35 138 . Initial 13 | . . 13 . Average 41 | . 10 46 . Maximum Alert Level . | . . . . Low Security (%) 100 | . 100 100 . Level 1 . | . . . . Level 2 . | . . . . Level 3 . | . . . . Level 4 . | . . . . Level 5 . | . . . . High Security . | . . . . Max Security . | . . . . Squads Dispatched 1 | . 1 . . Investigation . | . . . . Extermination . | . . . . Reinforcement 1 | . 1 . . Assault . | . . . . Garrison . | . . . . Intercept . | . . . . Searches Triggered . | . . . . Construction Impeded . | . . . . Haulers Reinforced . | . . . . Active Scanning Responses . | . . . . Cargo Convoy Interrupts . | . . . . Stealth | -11 -10 -10 -10 --------- Run | Yrd Mat Min Sub Distress Signals . | . . . . Communications Jammed . | . . . . Distress Signals . | . . . . Times Spotted 35 | . 2 10 23 Peak Tracking Total 4 | . 2 3 4 Tactical Retreats 3 | . . 1 2 Traps | -11 -10 -10 -10 ------- Run | Yrd Mat Min Sub Traps Triggered . | . . . . Indirectly . | . . . . Trap Hack Attempts . | . . . . Triggered . | . . . . Disarmed . | . . . . Reprogrammed . | . . . . Reused . | . . . . Traps Extracted . | . . . . Installed . | . . . . Triggered 3 | . . . 3 Most Traps Carried 1 | . . . 1 Machines | -11 -10 -10 -10 ---------- Run | Yrd Mat Min Sub Machines Disabled 1 | . . . 1 Max in Single Turn 1 | . . . 1 Machines Repaired . | . . . . Machines Dismantled . | . . . . Machines Sabotaged . | . . . . Overloaded Fab Kills . | . . . . Hacking | -11 -10 -10 -10 --------- Run | Yrd Mat Min Sub Machines Accessed 3 | . 1 1 1 Terminals 1 | . 1 . . Fabricators . | . . . . Repair Stations . | . . . . Recycling Units . | . . . . Scanalyzers . | . . . . Garrison Access . | . . . . Total Hacks 9 | . 3 1 5 Successful 7 | . 1 1 5 Failed 2 | . 2 . . Catastrophic . | . . . . Database Lockouts . | . . . . Manual 3 | . 3 . . Terminals 3 | . 3 . . Fabricators . | . . . . Repair Stations . | . . . . Recycling Units . | . . . . Scanalyzers . | . . . . Garrison Access . | . . . . Terminal Hacks 6 | . . 1 5 Record 5 | . . . 5 Open Door 1 | . . 1 . Fabricator Hacks . | . . . . Repair Station Hacks . | . . . . Recycling Unit Hacks . | . . . . Scanalyzer . | . . . . Garrison Access Hacks . | . . . . Unauthorized Hacks 1 | . 1 . . Terminals 1 | . 1 . . Botnet 1 | . 1 . . Fabricators . | . . . . Repair Stations . | . . . . Recycling Units . | . . . . Scanalyzers . | . . . . Garrison Access . | . . . . Data Cores Recovered . | . . . . Used . | . . . . Hacking Detections 1 | . 1 . . Full Trace Events . | . . . . Feedback Events . | . . . . Feedback Blocked . | . . . . Robot Schematics Acquired . | . . . . Robots Built . | . . . . Authchips . | . . . . Time . | . . . . Total Robot Build Rating . | . . . . Part Schematics Acquired . | . . . . Parts Built . | . . . . Authchips . | . . . . Time . | . . . . Total Part Build Rating . | . . . . Parts Repaired . | . . . . Time . | . . . . Parts Recycled . | . . . . Recycled Matter . | . . . . Retrieved Matter . | . . . . Retrieved Components . | . . . . Parts Scanalyzed . | . . . . Part Schematics Acquired . | . . . . Parts Damaged . | . . . . Bothacking | -11 -10 -10 -10 ------------ Run | Yrd Mat Min Sub Used RIF Installer . | . . . . Robots Hacked . | . . . . Non-combat . | . . . . Combat . | . . . . Robot Hacks Applied . | . . . . Relay Couplers Released . | . . . . Fabnet Peak Effective % . | . . . . Robots Rewired . | . . . . Allies Hacked . | . . . . Hacks Repelled . | . . . . Allies | -11 -10 -10 -10 -------- Run | Yrd Mat Min Sub Total Allies . | . . . . Largest Group . | . . . . Highest-Rated Group . | . . . . Highest-Rated Ally . | . . . . Total Orders . | . . . . Ally Attacks . | . . . . Total Damage . | . . . . Kills . | . . . . Allies Corrupted . | . . . . Allies Melted . | . . . . Intel | -11 -10 -10 -10 ------- Run | Yrd Mat Min Sub Robot Analysis Total . | . . . . Derelict Logs Recovered . | . . . . Drone Launches . | . . . . Drone Recoveries . | . . . . Exploration | -11 -10 -10 -10 ------------- Run | Yrd Mat Min Sub Turns Passed 7997 | . 145 1132 6720 Spaces Moved 2870 | 1 121 434 2314 Core 2 | . . . 2 Treads 1244 | . . 359 885 Legs 462 | 1 . . 461 Wheels 1162 | . 121 75 966 Hover . | . . . . Flight . | . . . . Fastest Speed 80 | 120 80 110 131 Average Speed 260 | 120 106 220 276 Slowest Speed 1650 | 120 110 320 1650 Overloaded Moves . | . . . . Propulsion Burnouts . | . . . . Robots Hopped . | . . . . Cave-ins Triggered . | . . . . Exploration Rate (%) 44 | 2 23 66 86 Regions Visited 3 Branch Regions 2 Pre-discovered Areas 1 | . . 1 . Known Exits Taken . | . . . . Unknown Exits Taken 3 | 1 1 1 . Scrap Searched 6 | . . . 6 Spaces Dug . | . . . . Terrain Destroyed 49 | . . . 49 Melee . | . . . . Projectile 4 | . . . 4 AOE 45 | . . . 45 Terrain Rammed . | . . . . Walls Destroyed . | . . . . Machines Disabled . | . . . . Actions | -11 -10 -10 -10 --------- Run | Yrd Mat Min Sub Total 3161 | . 134 519 2508 Wait 30 | . . 23 7 Move 2867 | . 120 433 2314 Hop . | . . . . Pick Up 55 | . 4 11 40 Fast Attach 13 | . 2 1 10 Attach 13 | . 2 1 10 Detach 6 | . 1 . 5 Swap 13 | . . 4 9 Drop 31 | . 3 1 27 Fire 132 | . 2 45 85 Melee . | . . . . Ram . | . . . . Kick . | . . . . Crush . | . . . . Escape Stasis . | . . . . Rewire . | . . . . Trap . | . . . . Miscellaneous 1 | . . . 1 Route ------- -11/Scrapyard -10/Materials -10/Mines (discovered 3 exits: [*Mat x2] / *Sub) -10/Subcaves (discovered 3 exits: [*Mat x2] / [*Rec]) History --------- Turn | Location | Event 1 | -11/Scrapyard | Discovered new exit (range 0) 1 | -11/Scrapyard | Entered Materials 115 | -10/Materials | Discovered new exit (range 14) 146 | -10/Materials | Entered Mines 316 | -10/Mines | Build established: Mutant 328 | -10/Mines | Assembled infested the area 333 | -10/Mines | Assisted by a Guerilla fighting off Assembled 424 | -10/Mines | Found a damaged Exp. Sensor Array with a note attached 428 | -10/Mines | Found Prototype Device 589 | -10/Mines | Learned location of Storage (-7) 962 | -10/Mines | Found Prototype Device 1073 | -10/Mines | Discovered new exit (range 3) 1121 | -10/Mines | Discovered new exit (range 5) 1273 | -10/Mines | Discovered new exit (range 3) 1278 | -10/Mines | Entered Subcaves 1568 | -10/Subcaves | Disturbed a concealed Subdweller 1937 | -10/Subcaves | Shifting Twisted Machinery released Battle Cannon 2281 | -10/Subcaves | Discovered new exit (range 14) 2521 | -10/Subcaves | A swath of the cavern ceiling suddenly collapsed 2558 | -10/Subcaves | Visited Clippyterm 2568 | -10/Subcaves | Learned Factory fabricator intel 2726 | -10/Subcaves | Shifting Twisted Machinery released Scrap Shield 2817 | -10/Subcaves | Core integrity fell below 50% 2862 | -10/Subcaves | Shifting Twisted Machinery released Sub. Power Source 2865 | -10/Subcaves | Shifting Twisted Machinery released Sub. Optics 2996 | -10/Subcaves | Identified Exp. Sensor Array 3000 | -10/Subcaves | Identified Bomb Drone Bay 3509 | -10/Subcaves | Discovered new exit (range 7) 4182 | -10/Subcaves | A swath of the cavern ceiling suddenly collapsed 4977 | -10/Subcaves | Shifting Twisted Machinery released Sub. Monowheel 5197 | -10/Subcaves | Discovered new exit (range 8) 5780 | -10/Subcaves | Ambushed by angry Subdweller bent on revenge 6429 | -10/Subcaves | Core integrity fell below 20% 7998 | -10/Subcaves | A Subdweller sparked back to life 7998 | -10/Subcaves | Destroyed by BE-1SR(R) with Subdweller Shrapnel Launcher Last Messages --------------- 05780_ Q7-IAQ(R): "ECOKILL!" 05780_ Acquired Cobbler Unit. 05781_ Q7-IAQ(R) suffers critical hit (Meltdown). 05781_ Disposable Heat Sink melted. 05784_ Acquired 85 matter. 05788_ Dropped Broken Sub. Monowheel. 05790_ Dropped Wheel. 05796_ Dropped Battle Cannon. 05796_ Acquired Wheel. 05816_ Subatomizers dissect the Ion Engine. 06404_ Acquired 5 matter. 06408_ Acquired 4 matter. 06437_ Autobeam Turret destroyed. 06455_ Ion Engine destroyed. 06459_ Destroyed Autobeam. 06462_ Autobeam Turret destroyed. 06462_ Machine disabled. 06648_ Acquired 36 matter. 06652_ Acquired 17 matter. 07998_ BE-1SR(R) creaks and sparks as it begins to move. Map ----- +----------------------------------------------------+ | ????????????????####????##""#??###########???????? | | ????????????????????????## ##????????????????????? | | ????????????????????????#"""#????????????????????? | | ????????????????????????#""##????????????????????? | | ????????????????????????###"#????????????????????? | | ?????????????????????????##"##???????????????????? | | ????????????????????????##"""#???????????????????? | | ????????????????????????# "##???????????????????? | | ????????????????????????# #????????????????????? | | ???????????????????????## #????????????????????? | | ?????????????????????### ##???????????????????? | | ?????????????????????# #???????????????????? | | ????????????????????## ##???????????????????? | | ????????????????????# # #????????????????????? | | ????????????????????## # ###???????????????????? | | ????????????????????# # ##??????????????????? | | ????????????????????## ## #??????????????????? | | ?????????????????????# ### #??????????????????? | | ????????????????????## ### ##??????????????????? | | ????????????????????# ## ##??????????????????? | | ????????????????????# ### #??????????????????? | | ????????????????????# ## #??????????????????? | | ????????????????????## #### #??????????????????? | | ?????????????????????# ## ##??????????????????? | | ?????????????????????# # #??????????????????? | | ?????????????????????## @ #??????????????????? | | ??????????????????????# ## ###??????????????????? | | ??????????????????????# #####????????????????????? | | ?????????????????????< #????????????????????????? | | ???????????????????? & ????????????????????????? | | ???????????????????< ????????????????????????? | | ???????????????????#R & ????????????????????????? | | ???????????????????# " #???????????????????????? | | ??????????????????? #"###???????????????????????? | | ??????????????????## ????????????????????????????? | | ??????????????????? ????????????????????????????? | | ???????????????????#?????????????????????????????? | | ?????????????????????????????????????????????????? | | ?????????????????????????????????????????????????? | | ?????????????????????????????????????????????????? | | ?????????????????????????????????????????????????? | | ?????????????????????????????????????????????????? | | ?????????????????????????????????????????????????? | | ?????????????????????????????????????????????????? | | ?????????????????????????????????????????????????? | | ?????????????????????????????????????????????????? | | ?????????????????????????????????????????????????? | | ?????????????????????????????????????????????????? | | ?????????????????????????????????????????????????? | | ?????????????????????????????????????????????????? | +----------------------------------------------------+ Best States ------------- Heat Dissipation 35 Energy Generation 10 Energy Capacity 250 Matter Stores 300 Matter Capacity 300 Sight Range 21 Terrain Scan Range 16 Terrain Scan Density 10 Armor Coverage 800 Evasion (%) 44 Recoil Reduction 2 Item Schematics ----------------- None Robot Schematics ------------------ None Fabricated ------------ Nothing Alien Tech Used ----------------- None Achievements -------------- None Challenges ------------ None Game ------ Seed BoltAlertObliterator Manual? 0 Play Time 00:23:05 Cumulative 135.4 hours Start 2024.11.24 @ 17:52:20 End 2024.11.24 @ 18:12:33 Sessions 1 Manual Loads 0 Difficulty Rogue Special Mode None Game No. 264 Rogue 264 Adventurer 0 Explorer 0 Win Type - Total 0 Types 0/0/0/0/0/0/0/0/0 Lore% 43 Gallery% 41 Achievement% 36 Wizard Run 0 Options --------- Layout 0 ASCII 0 Keyboard 0 Movement Mouse Keybinds 0 Fullscreen 1 Font 24/Smallcaps Map View 91x25 Zoom Use 90% Tactical HUD 1 Map Filters NONE Filters NONE Steam 1 RUN: d9f7fd95-e6d0-4371-a48f-4c600b0667f1